bitfinex-derivatives/quotes_BNBF0:USTF0_20250115
["timestamp","ask_amount","ask_price","bid_price","bid_amount"]
[1736955847815,0.26081476,704.87,703.91,0.28412723]
[1736955848116,0.26081476,704.86,703.91,0.28412723]
[1736955848318,1.05939441,705.0,703.91,0.28412723]
[1736955848518,0.26081793,704.99,703.91,0.28412723]
[1736955848720,0.26081793,704.98,703.91,0.28412723]
[1736955849619,0.26081559,704.97,703.91,0.28412723]
[1736955849814,1.05939441,704.96,703.91,0.28412723]
[1736955850019,0.26081559,704.95,703.91,0.28412723]
[1736955850818,1.05939441,704.93,703.91,0.28412723]
[1736955851121,0.26081559,704.92,703.91,0.28412723]
[1736955851813,0.26081559,704.91,703.91,0.28412723]
[1736955852014,1.05939441,704.94,703.91,0.28412723]
[1736955852215,0.26081306,704.93,703.91,0.28412723]
[1736955852719,0.26081306,704.92,703.91,0.28412723]
[1736955852919,1.05939441,704.98,703.91,0.28412723]
[1736955853121,0.26081491,704.97,703.91,0.28412723]
[1736955853621,0.26081491,704.96,703.91,0.28412723]
[1736955853922,0.26081491,704.95,703.91,0.28412723]
[1736955854122,1.05939441,704.99,703.91,0.28412723]
[1736955854324,1.32021166,704.98,703.91,0.28412723]
[1736955854622,0.26081725,704.97,703.91,0.28412723]
[1736955855124,1.05939441,704.98,703.91,0.28412723]
[1736955855326,0.26081521,704.97,703.91,0.28412723]
[1736955855724,1.05939441,705.0,703.91,0.28412723]
[1736955855924,0.26081523,704.99,703.91,0.28412723]
[1736955856824,1.05939441,705.0,703.91,0.28412723]
[1736955857123,1.05939441,704.99,703.91,0.28412723]
[1736955858425,1.05939441,705.4,703.91,0.28412723]
[1736955858725,0.28353109,705.39,703.91,0.28412723]
[1736955860125,0.26074989,705.38,703.91,0.28412723]
[1736955860324,0.28353109,705.39,703.91,0.28412723]
[1736955860527,0.26075536,705.38,703.91,0.28412723]
[1736955860724,1.05939441,705.33,703.91,0.28412723]
[1736955860924,0.54431459,705.32,703.91,0.28412723]
[1736955861127,0.54431861,705.31,703.91,0.28412723]
[1736955861327,0.26075536,705.3,703.91,0.28412723]
[1736955861729,1.05939441,705.04,703.91,0.28412723]
[1736955862427,1.12036206,705.31,703.91,0.28412723]
[1736955862428,1.05939441,705.07,703.91,0.28412723]
[1736955863524,1.05939441,705.14,703.91,0.28412723]
[1736955864529,1.05939441,705.19,703.91,0.28412723]
[1736955865432,1.05939441,705.2,703.91,0.28412723]
[1736955866526,1.05939441,705.21,703.91,0.28412723]
[1736955868632,0.28356325,705.31,703.91,0.28412723]
[1736955868633,1.05939441,705.25,703.91,0.28412723]
[1736955869533,0.28356325,705.31,703.91,0.28412723]
[1736955869534,1.05939441,705.27,703.91,0.28412723]
[1736955872031,0.26074481,705.26,703.91,0.28412723]
[1736955873235,1.05939441,705.23,703.91,0.28412723]
[1736955873436,0.26074481,705.22,703.91,0.28412723]
[1736955874134,0.28356325,705.31,703.91,0.28412723]
[1736955874135,1.05939441,705.19,703.91,0.28412723]
[1736955874328,0.26074026,705.18,703.91,0.28412723]
[1736955875639,1.05939441,705.16,703.91,0.28412723]
[1736955875839,0.26074026,705.15,703.91,0.28412723]
[1736955876838,1.05939441,705.16,703.91,0.28412723]
[1736955876839,1.05939441,705.11,703.91,0.28412723]
[1736955877033,0.26074158,705.1,703.91,0.28412723]
[1736955877542,1.05939441,705.11,703.91,0.28412723]
[1736955877940,0.26074293,705.1,703.91,0.28412723]
[1736955879540,1.05939441,705.1,703.91,0.28412723]
[1736955879745,0.26074357,705.09,703.91,0.28412723]
[1736955880645,1.32013798,705.09,703.91,0.28412723]
[1736955880845,0.26074357,705.08,703.91,0.28412723]
[1736955881640,1.05939441,705.06,703.91,0.28412723]
[1736955882545,1.05939441,705.07,703.91,0.28412723]
[1736955883248,1.32018021,705.06,703.91,0.28412723]
[1736955883443,0.2607858,705.05,703.91,0.28412723]
[1736955883647,1.05939441,705.06,703.91,0.28412723]
[1736955884843,1.05939441,705.12,703.91,0.28412723]
[1736955886050,1.05939441,705.15,703.91,0.28412723]
[1736955886746,0.26074888,705.14,703.91,0.28412723]
[1736955886947,1.32014329,705.14,703.91,0.28412723]
[1736955887147,0.26074888,705.13,703.91,0.28412723]
[1736955887942,0.26074794,705.12,703.91,0.28412723]
[1736955888147,1.05939441,705.06,703.91,0.28412723]
[1736955888946,1.05939441,705.04,703.91,0.28412723]
[1736955890248,1.05939441,705.0,703.91,0.28412723]
[1736955891048,1.05939441,704.98,703.91,0.28412723]
[1736955892149,1.05939441,704.96,703.91,0.28412723]
[1736955893255,1.05939441,705.0,703.91,0.28412723]
[1736955894154,1.05939441,704.97,703.91,0.28412723]
[1736955895054,1.05939441,704.96,703.91,0.28412723]
[1736955895951,1.05939441,704.93,703.91,0.28412723]
[1736955896958,1.05939441,704.89,703.91,0.28412723]
[1736955898152,1.05939441,704.86,703.91,0.28412723]
[1736955899060,1.05939441,704.87,703.91,0.28412723]
[1736955901055,1.05939441,705.07,703.91,0.28412723]
[1736955902357,1.05939441,705.11,703.91,0.28412723]
[1736955904259,1.05939441,705.25,703.91,0.28412723]
[1736955904959,1.05939441,705.27,703.91,0.28412723]
[1736955905155,0.260743,705.26,703.91,0.28412723]
[1736955905359,0.28358738,705.25,703.91,0.28412723]
[1736955905558,0.260743,705.24,703.91,0.28412723]
[1736955905757,1.05939441,704.97,703.91,0.28412723]
[1736955906762,1.05939441,704.94,703.91,0.28412723]
[1736955907959,1.05939441,704.99,703.91,0.28412723]
[1736955908662,1.05939441,704.98,703.91,0.28412723]
[1736955909761,1.05939441,705.09,703.91,0.28412723]
[1736955910765,1.05939441,705.1,703.91,0.28412723]
[1736955911760,1.05939441,705.12,703.91,0.28412723]
[1736955912867,1.05939441,705.1,703.91,0.28412723]
[1736955913761,0.28358738,705.25,703.91,0.28412723]
[1736955913762,1.05939441,705.05,703.91,0.28412723]
[1736955915864,0.28358738,705.25,703.91,0.28412723]
[1736955915865,1.05939441,704.99,703.91,0.28412723]
[1736955917468,1.05939441,705.05,703.91,0.28412723]
[1736955919568,1.34298179,705.25,703.91,0.28412723]
[1736955919569,1.05939441,705.13,703.91,0.28412723]
[1736955920670,0.28358738,705.25,703.91,0.28412723]
[1736955924071,1.05939441,705.41,703.91,0.28412723]
[1736955924871,1.05939441,705.46,703.91,0.28412723]
[1736955926174,1.05939441,705.68,703.91,0.28412723]
[1736955926375,0.26057203,705.67,703.91,0.28412723]
[1736955927473,0.26057203,705.66,703.92,1.63836982]
[1736955927668,0.26057203,705.65,703.91,0.28412723]
[1736955927870,1.05939441,705.83,703.91,0.28412723]
[1736955928878,1.05939441,706.27,703.91,0.28412723]
[1736955929073,0.28318584,706.25,703.91,0.28412723]
[1736955929277,0.26049143,706.24,703.91,0.28412723]
[1736955929679,0.28319787,706.22,703.91,0.28412723]
[1736955929879,0.26049143,706.21,703.91,0.28412723]
[1736955930079,0.28320589,706.2,703.91,0.28412723]
[1736955930279,0.26049143,706.19,703.91,0.28412723]
[1736955930478,0.28321391,706.18,703.91,0.28412723]
[1736955930684,0.26049143,706.17,703.91,0.28412723]
[1736955931581,0.28322594,706.15,703.91,0.28412723]
[1736955931779,0.26049143,706.14,703.91,0.28412723]
[1736955931974,0.26053757,706.13,703.91,0.28412723]
[1736955932177,0.28324198,706.11,703.91,0.28412723]
[1736955932379,0.26053757,706.1,703.91,0.28412723]
[1736955932576,0.28325402,706.08,703.91,0.28412723]
[1736955932778,0.26053757,706.07,703.91,0.28412723]
[1736955933076,0.28326204,706.06,703.91,0.28412723]
[1736955933277,0.26053757,706.05,703.91,0.28412723]
[1736955933581,0.28327408,706.03,703.91,0.28412723]
[1736955933782,0.26053757,706.02,703.91,0.28412723]
[1736955934178,0.2832821,706.01,703.91,0.28412723]
[1736955934383,0.26053757,706.0,703.91,0.28412723]
[1736955934684,0.2832821,706.01,703.91,0.28412723]
[1736955934883,0.26054273,706.0,703.91,0.28412723]
[1736955935284,0.28329414,705.98,703.91,0.28412723]
[1736955935685,0.26054688,705.97,703.91,0.28412723]
[1736955935879,0.28330217,705.96,703.91,0.28412723]
[1736955936083,0.26054688,705.95,703.91,0.28412723]
[1736955936277,0.28331019,705.94,703.91,0.28412723]
[1736955936683,0.26055084,705.93,703.91,0.28412723]
[1736955936883,0.28331822,705.92,703.91,0.28412723]
[1736955937082,0.26055084,705.91,703.91,0.28412723]
[1736955937584,0.28332625,705.9,703.91,0.28412723]
[1736955937782,0.26056923,705.89,703.91,0.28412723]
[1736955937984,0.26056923,705.88,703.91,0.28412723]
[1736955938187,0.28332625,705.9,703.91,0.28412723]
[1736955938388,0.26059468,705.89,703.91,0.28412723]
[1736955938588,0.26059468,705.88,703.91,0.28412723]
[1736955938783,0.26059468,705.87,703.91,0.28412723]
[1736955938989,0.26059468,705.86,703.91,0.28412723]
[1736955939284,0.26059468,705.85,703.91,0.28412723]
[1736955939484,0.26059468,705.84,703.91,0.28412723]
[1736955939690,0.26059468,705.83,703.91,0.28412723]
[1736955939885,0.26059468,705.82,703.91,0.28412723]
[1736955940083,0.26059468,705.81,703.91,0.28412723]
[1736955940386,0.28336639,705.8,703.91,0.28412723]
[1736955940588,0.26059316,705.79,703.91,0.28412723]
[1736955940986,0.28337442,705.78,703.91,0.28412723]
[1736955941182,0.26059316,705.77,703.91,0.28412723]
[1736955941787,0.5439662,705.76,703.91,0.28412723]
[1736955942088,0.26058375,705.75,703.91,0.28412723]
[1736955943190,0.26057341,705.74,703.91,0.28412723]
[1736955943384,0.26057341,705.75,703.91,0.28412723]
[1736955943590,0.26057341,705.74,703.91,0.28412723]
[1736955943791,0.26057341,705.73,703.91,0.28412723]
[1736955944093,0.26057269,705.72,703.91,0.28412723]
[1736955944388,0.26057269,705.71,703.91,0.28412723]
[1736955944589,0.26057269,705.7,703.91,0.28412723]
[1736955944789,0.26057269,705.69,703.91,0.28412723]
[1736955944990,0.26057269,705.68,703.91,0.28412723]
[1736955945192,0.26057269,705.67,703.91,0.28412723]
[1736955945390,0.26057269,705.66,703.91,0.28412723]
[1736955945590,0.26057269,705.65,703.91,0.28412723]
[1736955945792,0.26057269,705.64,703.91,0.28412723]
[1736955945992,0.26057269,705.63,703.91,0.28412723]
[1736955946194,0.26057463,705.62,703.91,0.28412723]
[1736955946392,0.26057463,705.61,703.91,0.28412723]
[1736955946595,0.26057463,705.6,703.91,0.28412723]
[1736955946895,0.26059464,705.59,703.91,0.28412723]
[1736955947094,0.26059464,705.58,703.91,0.28412723]
[1736955947397,0.26059464,705.57,703.91,0.28412723]
[1736955947592,0.26059464,705.75,703.91,0.28412723]
[1736955947796,0.54398512,705.74,703.91,0.28412723]
[1736955947997,0.54398913,705.73,703.91,0.28412723]
[1736955948199,0.26059464,705.72,703.91,0.28412723]
[1736955948995,0.26060045,705.71,703.91,0.28412723]
[1736955949295,0.26060045,705.7,703.91,0.28412723]
[1736955949593,0.26060045,705.69,703.91,0.28412723]
[1736955949797,0.26060045,705.68,703.91,0.28412723]
[1736955949999,0.26060045,705.72,703.91,0.28412723]
[1736955950200,0.26060045,705.71,703.91,0.28412723]
[1736955950399,0.26060045,705.7,703.91,0.28412723]
[1736955950596,0.26060045,705.69,703.91,0.28412723]
[1736955950801,0.26060045,705.72,703.91,0.28412723]
[1736955951094,0.26060045,705.68,703.91,0.28412723]
[1736955951301,0.26060045,705.67,703.91,0.28412723]
[1736955951498,0.26060045,705.72,703.91,0.28412723]
[1736955951697,0.2605894,705.71,703.91,0.28412723]
[1736955951994,0.2605894,705.7,703.91,0.28412723]
[1736955952194,0.28339449,705.73,703.91,0.28412723]
[1736955952195,0.2605894,705.69,703.91,0.28412723]
[1736955952497,0.2605894,705.68,703.91,0.28412723]
[1736955952702,0.2605894,705.67,703.91,0.28412723]
[1736955952902,0.2605894,705.66,703.91,0.28412723]
[1736955953097,0.2605894,705.65,703.91,0.28412723]
[1736955953296,0.2605894,705.64,703.91,0.28412723]
[1736955953498,0.2605894,705.63,703.91,0.28412723]
[1736955953702,0.2605894,705.62,703.91,0.28412723]
[1736955953896,1.05939441,705.66,703.91,0.28412723]
[1736955953897,0.2605894,705.61,703.91,0.28412723]
[1736955954097,0.2605894,705.6,703.91,0.28412723]
[1736955954399,0.2605894,705.59,703.91,0.28412723]
[1736955954605,0.2605996,705.58,703.91,0.28412723]
[1736955954797,0.2605996,705.57,703.91,0.28412723]
[1736955955001,0.2605996,705.56,703.91,0.28412723]
[1736955955202,0.2605996,705.55,703.91,0.28412723]
[1736955955402,0.2605996,705.54,703.91,0.28412723]
[1736955955706,0.2605996,705.53,703.91,0.28412723]
[1736955955905,1.05939441,705.61,703.91,0.28412723]
[1736955956105,0.26060138,705.6,703.91,0.28412723]
[1736955956303,1.31999579,705.6,703.91,0.28412723]
[1736955956507,0.26060138,705.59,703.91,0.28412723]
[1736955957106,1.05939441,705.56,703.91,0.28412723]
[1736955957303,0.26060138,705.55,703.91,0.28412723]
[1736955957710,1.31999579,705.55,703.91,0.28412723]
[1736955958008,0.26060138,705.54,703.91,0.28412723]
[1736955958811,1.31999579,705.54,703.91,0.28412723]
[1736955959011,0.26060138,705.53,703.91,0.28412723]
[1736955959411,1.05939441,705.5,703.91,0.28412723]
[1736955960510,0.26061336,705.49,703.91,0.28412723]
[1736955960712,0.26061336,705.48,703.91,0.28412723]
[1736955960912,1.05939441,705.52,703.91,0.28412723]
[1736955961414,0.28348287,705.51,703.91,0.28412723]
[1736955961912,0.26069083,705.5,703.91,0.28412723]
[1736955962109,0.28348287,705.51,703.91,0.28412723]
[1736955962310,0.26071527,705.5,703.91,0.28412723]
[1736955962515,1.05939441,705.47,703.91,0.28412723]
[1736955962814,0.26071527,705.46,703.91,0.28412723]
[1736955963014,0.26071527,705.45,703.91,0.28412723]
[1736955963215,0.26071527,705.44,703.91,0.28412723]
[1736955963413,1.05939441,705.13,703.91,0.28412723]
[1736955963613,0.26071527,705.12,703.91,0.28412723]
[1736955963814,1.05939441,705.13,703.91,0.28412723]
[1736955964517,1.05939441,705.33,703.91,0.28412723]
[1736955964717,0.26076169,705.32,703.91,0.28412723]
[1736955965017,0.2607767,705.31,703.91,0.28412723]
[1736955965217,0.28356727,705.3,703.91,0.28412723]
[1736955965517,0.2607767,705.29,703.91,0.28412723]
[1736955966118,0.28357531,705.28,703.91,0.28412723]
[1736955966318,0.2607767,705.27,703.91,0.28412723]
[1736955967013,0.2607767,705.26,703.91,0.28412723]
[1736955967221,0.2607767,705.25,703.91,0.28412723]
[1736955967420,0.2607767,705.24,703.91,0.28412723]
[1736955967721,0.26074128,705.23,703.91,0.28412723]
[1736955967921,0.26074128,705.22,703.91,0.28412723]
[1736955968121,0.26074128,705.27,703.91,0.28412723]
[1736955968420,0.28357531,705.28,703.91,0.28412723]
[1736955968620,0.2607375,705.27,703.91,0.28412723]
[1736955970621,0.26072806,705.26,703.91,0.28412723]
[1736955971019,0.26072806,705.27,703.91,0.28412723]
[1736955971424,0.26072806,705.26,703.91,0.28412723]
[1736955971624,0.26072806,705.25,703.91,0.28412723]
[1736955971824,0.28357531,705.28,703.91,0.28412723]
[1736955971825,0.26072806,705.24,703.91,0.28412723]
[1736955972125,0.26072806,705.23,703.91,0.28412723]
[1736955972323,0.26072806,705.22,703.91,0.28412723]
[1736955972520,0.26072806,705.21,703.91,0.28412723]
[1736955972721,0.26072806,705.2,703.91,0.28412723]
[1736955972919,0.26072806,705.19,703.91,0.28412723]
[1736955973219,0.26072806,705.18,703.91,0.28412723]
[1736955973525,0.26073067,705.17,703.91,0.28412723]
[1736955973827,0.26073067,705.16,703.91,0.28412723]
[1736955974023,0.26073067,705.15,703.91,0.28412723]
[1736955974228,0.26073067,705.14,703.91,0.28412723]
[1736955974421,0.28357531,705.28,703.91,0.28412723]
[1736955974724,0.26072968,705.27,703.91,0.28412723]
[1736955976227,0.26073322,705.26,703.91,0.28412723]
[1736955976421,0.26073322,705.25,703.91,0.28412723]
[1736955976727,0.26073322,705.24,703.91,0.28412723]
[1736955977023,0.26073108,705.23,703.91,0.28412723]
[1736955977226,0.28357531,705.28,703.91,0.28412723]
[1736955977227,0.26073108,705.27,703.91,0.28412723]
[1736955977428,0.26073108,705.22,703.91,0.28412723]
[1736955977622,0.26073108,705.26,703.91,0.28412723]
[1736955977824,0.26073108,705.25,703.91,0.28412723]
[1736955978027,0.26073108,705.27,703.91,0.28412723]
[1736955978321,0.26073108,705.26,703.91,0.28412723]
[1736955978727,0.26073108,705.27,703.91,0.28412723]
[1736955978927,0.28357531,705.28,703.91,0.28412723]
[1736955978928,0.26073108,705.25,703.91,0.28412723]
[1736955979128,0.26072305,705.24,703.91,0.28412723]
[1736955979528,0.26072305,705.23,703.91,0.28412723]
[1736955979726,0.26072305,705.27,703.91,0.28412723]
[1736955979925,0.26072305,705.26,703.91,0.28412723]
[1736955980127,0.26072305,705.25,703.91,0.28412723]
[1736955980327,0.26072305,705.24,703.91,0.28412723]
[1736955980631,0.26072305,705.23,703.91,0.28412723]
[1736955980828,0.26072305,705.22,703.91,0.28412723]
[1736955981025,0.26072305,705.21,703.91,0.28412723]
[1736955981224,0.26072305,705.2,703.91,0.28412723]
[1736955981429,0.26072305,705.19,703.91,0.28412723]
[1736955981728,0.28357531,705.28,703.91,0.28412723]
[1736955981929,0.26073031,705.27,703.91,0.28412723]
[1736955982930,0.26073031,705.26,703.91,0.28412723]
[1736955983129,0.26073031,705.25,703.91,0.28412723]
[1736955983331,0.26073031,705.24,703.91,0.28412723]
[1736955983631,0.26075975,705.23,703.91,0.28412723]
[1736955983833,0.26075975,705.27,703.91,0.28412723]
[1736955984027,0.26075975,705.26,703.91,0.28412723]
[1736955984231,0.26075975,705.25,703.91,0.28412723]
[1736955984431,0.28357531,705.28,703.91,0.28412723]
[1736955984631,0.26078957,705.27,703.91,0.28412723]
[1736955984933,0.28357531,705.28,703.91,0.28412723]
[1736955984934,0.26078957,705.26,703.91,0.28412723]
[1736955985127,0.26078957,705.25,703.91,0.28412723]
[1736955985333,0.28357531,705.28,703.91,0.28412723]
[1736955985334,1.05939441,705.12,703.91,0.28412723]
[1736955985633,0.26078957,705.11,703.91,0.28412723]
[1736955986333,1.05939441,705.14,703.91,0.28412723]
[1736955986334,0.26078957,705.1,703.91,0.28412723]
[1736955986534,0.26078957,705.09,703.91,0.28412723]
[1736955986730,0.26078957,705.08,703.91,0.28412723]
[1736955986931,0.26078957,705.07,703.91,0.28412723]
[1736955987127,0.26078957,705.06,703.91,0.28412723]
[1736955987432,0.26078957,705.05,703.91,0.28412723]
[1736955987633,0.26078957,705.04,703.91,0.28412723]
[1736955987834,0.26078957,705.03,703.91,0.28412723]
[1736955988134,0.26078957,705.02,703.91,0.28412723]
[1736955988434,0.26078957,705.01,703.91,0.28412723]
[1736955988634,0.26078957,705.0,703.91,0.28412723]
[1736955988827,0.26078957,704.99,703.91,0.28412723]
[1736955989027,0.26078957,704.98,703.91,0.28412723]
[1736955989231,0.26078957,704.97,703.91,0.28412723]
[1736955989431,0.26078957,704.96,703.91,0.28412723]
[1736955989731,0.26078957,704.95,703.91,0.28412723]
[1736955989931,1.05939441,705.13,703.91,0.28412723]
[1736955990131,1.05939441,705.08,703.91,0.28412723]
[1736955990327,0.26082246,705.07,703.91,0.28412723]
[1736955991433,1.05939441,705.03,703.91,0.28412723]
[1736955991640,0.26082246,705.02,703.91,0.28412723]
[1736955992239,1.32021687,705.02,703.91,0.28412723]
[1736955992435,0.26082246,705.01,703.91,0.28412723]
[1736955992841,1.05939441,704.93,703.91,0.28412723]
[1736955993043,0.26082246,704.92,703.91,0.28412723]
[1736955993644,0.26082365,704.91,703.91,0.28412723]
[1736955993845,0.26082365,704.9,703.91,0.28412723]
[1736955994047,0.26082365,704.89,703.91,0.28412723]
[1736955994241,0.26082365,704.88,703.91,0.28412723]
[1736955994445,0.26082365,704.87,703.91,0.28412723]
[1736955994645,0.26082365,704.86,703.91,0.28412723]
[1736955994947,1.05939441,704.97,703.91,0.28412723]
[1736955995150,0.26083284,704.96,703.91,0.28412723]
[1736955995548,0.28357531,705.28,703.91,0.28412723]
[1736955995549,1.05939441,704.91,703.91,0.28412723]
[1736955995848,0.26085469,704.9,703.91,0.28412723]
[1736955996453,1.05939441,704.87,703.91,0.28412723]
[1736955996748,0.26085469,704.86,703.91,0.28412723]
[1736955998242,1.05939441,704.87,703.91,0.28412723]
[1736955998447,1.05939441,704.84,703.91,0.28412723]
[1736955998648,0.26086466,704.83,703.91,0.28412723]
[1736955999449,1.32025907,704.83,703.91,0.28412723]
[1736955999649,0.26086466,704.82,703.91,0.28412723]
[1736956000543,0.26086466,704.81,703.91,0.28412723]
[1736956000749,0.26086466,704.8,703.91,0.28412723]
[1736956000948,0.26086466,704.79,703.91,0.28412723]
[1736956001149,1.05939441,705.07,703.91,0.28412723]
[1736956001150,0.26086466,704.83,703.91,0.28412723]
[1736956001450,0.26086466,704.82,703.91,0.28412723]
[1736956001648,0.26086466,704.86,703.91,0.28412723]
[1736956001848,0.26086863,704.85,703.91,0.28412723]
[1736956002044,0.26086863,704.86,703.91,0.28412723]
[1736956002245,0.26086863,704.85,703.91,0.28412723]
[1736956002446,0.26086863,704.86,703.91,0.28412723]
[1736956002648,0.26086863,704.84,703.91,0.28412723]
[1736956002848,0.26086863,704.83,703.91,0.28412723]
[1736956003048,0.26086863,704.82,703.91,0.28412723]
[1736956003249,0.26086863,704.81,703.91,0.28412723]
[1736956003448,0.26086863,704.86,703.91,0.28412723]
[1736956003850,0.26086959,704.85,703.91,0.28412723]
[1736956004051,0.26086959,704.86,703.91,0.28412723]
[1736956004250,0.26086959,704.84,703.91,0.28412723]
[1736956004450,0.26086959,704.83,703.91,0.28412723]
[1736956004649,0.26086959,704.87,703.91,0.28412723]
[1736956004850,0.26085191,704.86,703.91,0.28412723]
[1736956005053,0.26085191,704.85,703.91,0.28412723]
[1736956005354,0.26085191,704.84,703.91,0.28412723]
[1736956005552,1.05939441,704.96,703.91,0.28412723]
[1736956005752,0.26085249,704.95,703.91,0.28412723]
[1736956006154,0.26085249,704.98,703.91,0.28412723]
[1736956006355,0.26084266,704.97,703.91,0.28412723]
[1736956006560,1.05939441,704.99,703.91,0.28412723]
[1736956006757,0.26084266,704.98,703.91,0.28412723]
[1736956007059,0.26084565,704.98,703.91,0.28412723]
[1736956007359,0.26084565,705.06,703.91,0.28412723]
[1736956007656,0.26084565,705.05,703.91,0.28412723]
[1736956007857,0.28357531,705.28,703.91,0.28412723]
[1736956007858,1.32024006,705.06,703.91,0.28412723]
[1736956008055,0.26084565,705.05,703.91,0.28412723]
[1736956009459,0.26083219,705.04,703.91,0.28412723]
[1736956009659,1.3202266,705.05,703.91,0.28412723]
[1736956009859,0.26083219,705.03,703.91,0.28412723]
[1736956010057,0.26083219,705.04,703.91,0.28412723]
[1736956010257,0.26081573,705.03,703.91,0.28412723]
[1736956010459,1.05939441,705.02,703.91,0.28412723]
[1736956010661,0.26081573,705.01,703.91,0.28412723]
[1736956011358,1.05939441,705.02,703.91,0.28412723]
[1736956011560,1.05939441,705.07,703.91,0.28412723]
[1736956012759,1.05939441,705.2,703.91,0.28412723]
[1736956012957,0.26076786,705.19,703.91,0.28412723]
[1736956013757,1.05939441,705.17,703.91,0.28412723]
[1736956013958,0.26076786,705.16,703.91,0.28412723]
[1736956015158,1.05939441,705.13,703.91,0.28412723]
[1736956015355,0.26078473,705.12,703.91,0.28412723]
[1736956016056,1.05939441,705.1,703.91,0.28412723]
[1736956016255,0.26078473,705.09,703.91,0.28412723]
[1736956017261,1.05939441,705.07,703.91,0.28412723]
[1736956017456,0.26078473,705.06,703.91,0.28412723]
[1736956017861,1.05939441,705.07,703.91,0.28412723]
[1736956018060,0.26079699,705.05,703.91,0.28412723]
[1736956018261,1.3201914,705.04,703.91,0.28412723]
[1736956018562,1.05939441,705.04,703.91,0.28412723]
[1736956020863,0.26079642,705.03,703.91,0.28412723]
[1736956021263,1.05939441,705.02,703.91,0.28412723]
[1736956021462,0.26079642,705.01,703.91,0.28412723]
[1736956022565,1.05939441,704.9,703.91,0.28412723]
[1736956022763,0.26079642,704.89,703.38,1.05091482]
[1736956022959,0.26079642,704.89,703.39,0.28433728]
[1736956023558,1.05939441,704.79,703.39,0.28433728]
[1736956024561,0.28357531,705.28,703.39,0.28433728]
[1736956024562,1.05939441,704.81,703.39,0.28433728]
[1736956025667,1.05939441,704.88,703.39,0.28433728]
[1736956025862,0.2608309,704.87,703.39,0.28433728]
[1736956027067,1.05939441,704.8,703.39,0.28433728]
[1736956028163,1.05939441,704.84,703.39,0.28433728]
[1736956028965,1.27127329,705.34,703.39,0.28433728]
[1736956028966,1.05939441,704.88,703.39,0.28433728]
[1736956029163,0.26085607,704.87,703.39,0.28433728]
[1736956029968,1.05939441,704.85,703.39,0.28433728]
[1736956031070,0.26083966,704.84,703.39,0.28433728]
[1736956031369,0.26083966,704.83,703.39,0.28433728]
[1736956031569,0.26083966,704.82,703.39,0.28433728]
[1736956031769,1.05939441,704.87,703.39,0.28433728]
[1736956032068,1.05939441,704.84,703.39,0.28433728]
[1736956033067,1.05939441,704.87,703.39,0.28433728]
[1736956033467,0.26082145,704.86,703.39,0.28433728]
[1736956033671,0.26082135,704.85,703.39,0.28433728]
[1736956033866,0.26082135,704.84,703.39,0.28433728]
[1736956034066,0.26082135,704.83,703.39,0.28433728]
[1736956034273,1.05939441,704.88,703.39,0.28433728]
[1736956034974,0.26083348,704.87,703.39,0.28433728]
[1736956035374,0.26083348,704.86,703.39,0.28433728]
[1736956035672,0.26083348,704.85,703.39,0.28433728]
[1736956035874,1.05939441,704.78,703.39,0.28433728]
[1736956036077,0.26083348,704.77,703.39,0.28433728]
[1736956036674,1.32026301,704.76,703.39,0.28433728]
[1736956036975,0.2608686,704.75,703.39,0.28433728]
[1736956037174,1.05939441,704.76,703.39,0.28433728]
[1736956037567,0.26087043,704.75,703.39,0.28433728]
[1736956037972,0.26087043,704.74,703.39,0.28433728]
[1736956038273,0.26087043,704.73,703.39,0.28433728]
[1736956038470,0.26087043,704.72,703.39,0.28433728]
[1736956038673,0.26087043,704.71,703.39,0.28433728]
[1736956038977,0.26087043,704.7,703.39,0.28433728]
[1736956039381,0.26088702,704.69,703.39,0.28433728]
[1736956039576,0.26088702,704.7,703.39,0.28433728]
[1736956039770,0.26088702,704.68,703.39,0.28433728]
[1736956039974,0.26088702,704.67,703.39,0.28433728]
[1736956040176,1.05939441,704.67,703.39,0.28433728]
[1736956041680,1.05939441,704.8,703.39,0.28433728]
[1736956042372,1.05939441,704.87,703.39,0.28433728]
[1736956042773,0.26088882,704.86,703.39,0.28433728]
[1736956043077,0.2608918,704.86,703.39,0.28433728]
[1736956043574,0.2608918,704.85,703.39,0.28433728]
[1736956043776,1.05939441,704.88,703.39,0.28433728]
[1736956044481,0.2609212,704.87,703.39,0.28433728]
[1736956044884,0.26093123,704.86,703.39,0.28433728]
[1736956045083,1.05939441,704.65,703.39,0.28433728]
[1736956045283,0.26093123,704.64,703.39,0.28433728]
[1736956046579,1.32032564,704.64,703.39,0.28433728]
[1736956046781,0.26093123,704.63,703.39,0.28433728]
[1736956047179,1.05939441,704.6,703.39,0.28433728]
[1736956047384,0.26093123,704.59,703.39,0.28433728]
[1736956047982,1.05939441,704.6,703.39,0.28433728]
[1736956048184,1.05939441,704.64,703.39,0.28433728]
[1736956048387,1.05939441,704.64,702.69,1.05091482]
[1736956049487,1.05939441,704.96,701.84,1.05091482]
[1736956049687,0.26102333,704.95,701.84,1.05091482]
[1736956050281,0.26102333,704.95,701.81,1.05091482]
[1736956050485,0.26101635,704.94,701.81,1.05091482]
[1736956050889,0.26101635,704.93,701.81,1.05091482]
[1736956051186,0.26101635,704.97,701.8,1.05091482]
[1736956051388,0.26101817,704.96,701.8,1.05091482]
[1736956051787,0.26101817,704.95,701.8,1.05091482]